[Event "GrandPrix_29.05"]
[Site "Chess.com"]
[Date "2020.05.29"]
[Round "1"]
[White "SamadovRead"]
[Black "Misi_95"]
[Result "1/2-1/2"]
[WhiteElo "1947"]
[BlackElo "2165"]
[TimeControl "600+2"]
[EndTime "9:28:30 PDT"]
[Termination "Game drawn by repetition"]

1. d4 {[%clk 0:10:01.6]} 1... Nf6 {[%clk 0:09:59]} 2. c4 {[%clk 0:10:01.9]} 2...
e6 {[%clk 0:09:57]} 3. g3 {[%clk 0:10:01.8]} 3... c5 {[%clk 0:09:56.3]} 4. Nf3
{[%clk 0:10:01.8]} 4... cxd4 {[%clk 0:09:53]} 5. Nxd4 {[%clk 0:10:02.4]} 5... d5
{[%clk 0:09:50.4]} 6. Bg2 {[%clk 0:10:02.1]} 6... e5 {[%clk 0:09:51.3]} 7. Nf3
{[%clk 0:10:01]} 7... d4 {[%clk 0:09:52.4]} 8. O-O {[%clk 0:10:00.1]} 8... Nc6
{[%clk 0:09:52.3]} 9. e3 {[%clk 0:10:00]} 9... Be7 {[%clk 0:09:36.2]} 10. exd4
{[%clk 0:10:00.2]} 10... exd4 {[%clk 0:09:38.1]} 11. b4 {[%clk 0:09:59.1]} 11...
Nxb4 {[%clk 0:09:03.7]} 12. Nxd4 {[%clk 0:09:57.7]} 12... O-O {[%clk 0:09:02.3]}
13. a3 {[%clk 0:09:09.6]} 13... Bg4 {[%clk 0:08:09.9]} 14. f3 {[%clk 0:06:51.9]}
14... Bc5 {[%clk 0:08:00.4]} 15. Be3 {[%clk 0:06:29.6]} 15... Nc6 {[%clk
0:07:47.1]} 16. fxg4 {[%clk 0:06:02.9]} 16... Nxd4 {[%clk 0:06:52.5]} 17. Nc3
{[%clk 0:05:11.3]} 17... Re8 {[%clk 0:06:10.9]} 18. Bf2 {[%clk 0:04:44.2]} 18...
h6 {[%clk 0:04:31.6]} 19. Rb1 {[%clk 0:04:04.1]} 19... Rb8 {[%clk 0:04:21.4]}
20. Kh1 {[%clk 0:03:43.6]} 20... Ne6 {[%clk 0:04:08.2]} 21. Nd5 {[%clk 0:03:24]}
21... Bxf2 {[%clk 0:04:05.1]} 22. Rxf2 {[%clk 0:03:25.2]} 22... Nxd5 {[%clk
0:03:58.7]} 23. cxd5 {[%clk 0:03:18.9]} 23... Ng5 {[%clk 0:03:55.4]} 24. Qd4
{[%clk 0:03:10.9]} 24... Qd6 {[%clk 0:03:48.1]} 25. Qxa7 {[%clk 0:02:37.3]}
25... Ra8 {[%clk 0:03:27.4]} 26. Qb6 {[%clk 0:02:08.6]} 26... Re1+ {[%clk
0:03:19.6]} 27. Rf1 {[%clk 0:02:04.9]} 27... Rxf1+ {[%clk 0:03:17.6]} 28. Bxf1
{[%clk 0:02:04.8]} 28... Qxd5+ {[%clk 0:03:10.6]} 29. Bg2 {[%clk 0:02:05]} 29...
Qd3 {[%clk 0:03:05.5]} 30. Qxb7 {[%clk 0:01:52]} 30... Rxa3 {[%clk 0:03:03.2]}
31. Qc8+ {[%clk 0:01:47.7]} 31... Kh7 {[%clk 0:03:04.1]} 32. Qf5+ {[%clk
0:01:49.2]} 32... g6 {[%clk 0:02:39.9]} 33. Qxd3 {[%clk 0:01:46.4]} 33... Rxd3
{[%clk 0:02:41.8]} 34. Rf1 {[%clk 0:01:27]} 34... Kg7 {[%clk 0:02:42.1]} 35. h4
{[%clk 0:01:16.5]} 35... Ne6 {[%clk 0:02:42.4]} 36. Kh2 {[%clk 0:01:17.5]} 36...
Nf8 {[%clk 0:02:36.3]} 37. Be4 {[%clk 0:01:16.1]} 37... Rd2+ {[%clk 0:02:36.3]}
38. Kg1 {[%clk 0:01:16.1]} 38... Nd7 {[%clk 0:02:36.4]} 39. Rf2 {[%clk
0:01:16.7]} 39... Rd4 {[%clk 0:02:36.9]} 40. Bf3 {[%clk 0:01:04.8]} 40... Ne5
{[%clk 0:02:37.8]} 41. Kg2 {[%clk 0:01:02]} 41... Nxg4 {[%clk 0:02:25.4]} 42.
Bxg4 {[%clk 0:01:03]} 42... Rxg4 {[%clk 0:02:27.3]} 43. Ra2 {[%clk 0:01:03.5]}
43... Rc4 {[%clk 0:02:27.6]} 44. Ra6 {[%clk 0:01:03.2]} 44... Re4 {[%clk
0:02:25.1]} 45. Kf3 {[%clk 0:01:04.2]} 45... Re6 {[%clk 0:02:26.1]} 46. Ra5
{[%clk 0:01:00.6]} 46... Kf6 {[%clk 0:02:26.5]} 47. Rb5 {[%clk 0:01:00]} 47...
Rd6 {[%clk 0:02:18.7]} 48. Ra5 {[%clk 0:01:00.6]} 48... Ke6 {[%clk 0:02:15]} 49.
Rb5 {[%clk 0:00:58.8]} 49... Rd5 {[%clk 0:02:14]} 50. Rb7 {[%clk 0:00:58.8]}
50... Rd3+ {[%clk 0:02:09.2]} 51. Kf2 {[%clk 0:00:58.4]} 51... g5 {[%clk
0:02:04.6]} 52. hxg5 {[%clk 0:00:58.9]} 52... hxg5 {[%clk 0:02:05.5]} 53. Rb5
{[%clk 0:00:51.4]} 53... f6 {[%clk 0:02:04.9]} 54. Ra5 {[%clk 0:00:51.7]} 54...
Rd5 {[%clk 0:02:05.4]} 55. Ra6+ {[%clk 0:00:50.1]} 55... Kf5 {[%clk 0:02:06.1]}
56. Ra4 {[%clk 0:00:50.5]} 56... Rd3 {[%clk 0:01:58.5]} 57. Rb4 {[%clk
0:00:50.6]} 57... Ra3 {[%clk 0:01:55.1]} 58. Rc4 {[%clk 0:00:49.5]} 58... Ra2+
{[%clk 0:01:56.1]} 59. Kf1 {[%clk 0:00:45.9]} 59... Ke5 {[%clk 0:01:52.7]} 60.
Rb4 {[%clk 0:00:45.1]} 60... Rd2 {[%clk 0:01:52.6]} 61. Ra4 {[%clk 0:00:44.7]}
61... Rd4 {[%clk 0:01:48.7]} 62. Ra6 {[%clk 0:00:43.9]} 62... f5 {[%clk
0:01:47.6]} 63. Kf2 {[%clk 0:00:44.6]} 63... Rd2+ {[%clk 0:01:48.1]} 64. Ke3
{[%clk 0:00:44.1]} 64... Rd5 {[%clk 0:01:49.2]} 65. Kf3 {[%clk 0:00:43.2]} 65...
Rd3+ {[%clk 0:01:48.8]} 66. Kf2 {[%clk 0:00:43.4]} 66... g4 {[%clk 0:01:43.9]}
67. Ra5+ {[%clk 0:00:43.3]} 67... Ke4 {[%clk 0:01:41]} 68. Ra4+ {[%clk
0:00:43.3]} 68... Rd4 {[%clk 0:01:42]} 69. Ra2 {[%clk 0:00:43.9]} 69... Rc4
{[%clk 0:01:13]} 70. Re2+ {[%clk 0:00:37.7]} 70... Kd4 {[%clk 0:01:09.6]} 71.
Rd2+ {[%clk 0:00:37]} 71... Ke5 {[%clk 0:01:06.9]} 72. Re2+ {[%clk 0:00:38.1]}
72... Kd5 {[%clk 0:00:44]} 73. Ra2 {[%clk 0:00:36.8]} 73... Rc3 {[%clk
0:00:36.5]} 74. Rd2+ {[%clk 0:00:34.5]} 74... Ke5 {[%clk 0:00:35.9]} 75. Re2+
{[%clk 0:00:35.5]} 75... Kf6 {[%clk 0:00:35.9]} 76. Ra2 {[%clk 0:00:34.2]} 76...
Rf3+ {[%clk 0:00:36.3]} 77. Kg2 {[%clk 0:00:35.1]} 77... Rc3 {[%clk 0:00:29.6]}
78. Kf2 {[%clk 0:00:34.3]} 78... Ke5 {[%clk 0:00:30.4]} 79. Re2+ {[%clk
0:00:34.3]} 79... Kd4 {[%clk 0:00:30.7]} 80. Rd2+ {[%clk 0:00:29.9]} 80... Rd3
{[%clk 0:00:30.4]} 81. Re2 {[%clk 0:00:30.6]} 81... Kc3 {[%clk 0:00:27.5]} 82.
Re5 {[%clk 0:00:28.6]} 82... Rf3+ {[%clk 0:00:25]} 83. Kg2 {[%clk 0:00:29.8]}
83... Kd4 {[%clk 0:00:25.1]} 84. Ra5 {[%clk 0:00:29.3]} 84... Ke4 {[%clk
0:00:23.1]} 85. Ra4+ {[%clk 0:00:30.1]} 85... Ke5 {[%clk 0:00:24.3]} 86. Ra5+
{[%clk 0:00:30.9]} 86... Kf6 {[%clk 0:00:25.4]} 87. Ra6+ {[%clk 0:00:28.7]}
87... Kg5 {[%clk 0:00:26.1]} 88. Ra4 {[%clk 0:00:30]} 88... Rd3 {[%clk
0:00:22.6]} 89. Kf2 {[%clk 0:00:28.6]} 89... Rd2+ {[%clk 0:00:22.5]} 90. Kf1
{[%clk 0:00:29.5]} 90... Kf6 {[%clk 0:00:20.2]} 91. Ra5 {[%clk 0:00:27.9]} 91...
Rc2 {[%clk 0:00:20]} 92. Kg1 {[%clk 0:00:27.1]} 92... Ke6 {[%clk 0:00:19.4]} 93.
Kf1 {[%clk 0:00:27.1]} 93... Rd2 {[%clk 0:00:20.3]} 94. Kg1 {[%clk 0:00:26.3]}
94... Rd5 {[%clk 0:00:21.4]} 95. Ra4 {[%clk 0:00:26.1]} 95... Ke5 {[%clk
0:00:22.2]} 96. Kf2 {[%clk 0:00:26.7]} 96... Rd2+ {[%clk 0:00:23.5]} 97. Kf1
{[%clk 0:00:27.6]} 97... Rd4 {[%clk 0:00:24.6]} 98. Ra2 {[%clk 0:00:26.2]} 98...
Kf6 {[%clk 0:00:17]} 99. Kf2 {[%clk 0:00:23.5]} 99... Kg5 {[%clk 0:00:18]} 100.
Ra5 {[%clk 0:00:24.6]} 100... Rd2+ {[%clk 0:00:18.9]} 101. Kf1 {[%clk
0:00:25.1]} 101... Rc2 {[%clk 0:00:19.4]} 102. Kg1 {[%clk 0:00:25.9]} 102... Kg6
{[%clk 0:00:20.1]} 103. Kf1 {[%clk 0:00:26.1]} 103... Rd2 {[%clk 0:00:18.4]}
104. Kg1 {[%clk 0:00:26.9]} 104... Kf6 {[%clk 0:00:19.5]} 105. Kf1 {[%clk
0:00:27.2]} 105... Ke6 {[%clk 0:00:20.6]} 106. Kg1 {[%clk 0:00:27.6]} 106... Rd5
{[%clk 0:00:22.1]} 107. Ra4 {[%clk 0:00:28.5]} 107... Ke5 {[%clk 0:00:22.7]}
108. Kf2 {[%clk 0:00:29.5]} 108... Rd2+ {[%clk 0:00:23.9]} 109. Kf1 {[%clk
0:00:30.6]} 109... Rc2 {[%clk 0:00:23.5]} 110. Kg1 {[%clk 0:00:30.6]} 110... Rd2
{[%clk 0:00:19.2]} 111. Kf1 {[%clk 0:00:31.5]} 1/2-1/2

[Event "GrandPrix_29.05"]
[Site "Chess.com"]
[Date "2020.05.29"]
[Round "1"]
[White "TheEternalPatzer"]
[Black "DaviD-GevorG"]
[Result "1/2-1/2"]
[WhiteElo "2035"]
[BlackElo "1750"]
[TimeControl "600+2"]
[EndTime "9:29:06 PDT"]
[Termination "Game drawn by 50-move rule"]

1. c4 {[%clk 0:09:59.7]} 1... e5 {[%clk 0:09:58.5]} 2. Nc3 {[%clk 0:09:58.7]}
2... d6 {[%clk 0:09:59.4]} 3. d4 {[%clk 0:09:50.8]} 3... Nd7 {[%clk 0:09:59.6]}
4. Nf3 {[%clk 0:09:50.4]} 4... Ngf6 {[%clk 0:10:00.6]} 5. e4 {[%clk 0:09:50.6]}
5... Be7 {[%clk 0:09:48.7]} 6. Be2 {[%clk 0:09:50.4]} 6... O-O {[%clk
0:09:48.9]} 7. O-O {[%clk 0:09:51]} 7... c6 {[%clk 0:09:50.3]} 8. Re1 {[%clk
0:09:50.8]} 8... Qc7 {[%clk 0:09:33.8]} 9. h3 {[%clk 0:09:40.1]} 9... Ne8 {[%clk
0:09:18.6]} 10. Be3 {[%clk 0:08:54.7]} 10... g6 {[%clk 0:09:14.1]} 11. b4 {[%clk
0:08:51.5]} 11... Ng7 {[%clk 0:09:09.1]} 12. Qb3 {[%clk 0:08:11]} 12... a5
{[%clk 0:08:40.8]} 13. a3 {[%clk 0:08:02.1]} 13... Kh8 {[%clk 0:08:01.3]} 14.
dxe5 {[%clk 0:07:28.2]} 14... dxe5 {[%clk 0:07:55.6]} 15. c5 {[%clk 0:07:21.8]}
15... Ne6 {[%clk 0:07:07.5]} 16. Bc4 {[%clk 0:07:16.3]} 16... Nf6 {[%clk
0:07:02.3]} 17. Ng5 {[%clk 0:06:41]} 17... Nxg5 {[%clk 0:06:52.5]} 18. Bxg5
{[%clk 0:06:39.3]} 18... Kg7 {[%clk 0:06:54.4]} 19. Na4 {[%clk 0:05:58]} 19...
axb4 {[%clk 0:06:31.2]} 20. axb4 {[%clk 0:05:57.6]} 20... Nh5 {[%clk 0:06:31.9]}
21. Bd2 {[%clk 0:05:08.3]} 21... Nf4 {[%clk 0:06:22]} 22. Bxf4 {[%clk
0:04:51.6]} 22... exf4 {[%clk 0:06:23.9]} 23. e5 {[%clk 0:04:36.4]} 23... Bf5
{[%clk 0:05:12.6]} 24. Qc3 {[%clk 0:03:41.9]} 24... g5 {[%clk 0:04:20.9]} 25.
Nb6 {[%clk 0:03:40.1]} 25... Rxa1 {[%clk 0:04:20.1]} 26. Qxa1 {[%clk 0:03:38]}
26... Be6 {[%clk 0:04:07.5]} 27. Bxe6 {[%clk 0:03:29.9]} 27... fxe6 {[%clk
0:04:08.6]} 28. Nc4 {[%clk 0:03:25.6]} 28... Qc8 {[%clk 0:01:23.8]} 29. Qd4
{[%clk 0:03:23.3]} 29... f3 {[%clk 0:00:57.2]} 30. Nd6 {[%clk 0:03:13.9]} 30...
Qa8 {[%clk 0:00:45.5]} 31. Qg4 {[%clk 0:02:40.7]} 31... Qa2 {[%clk 0:00:36.9]}
32. gxf3 {[%clk 0:02:17.7]} 32... Rf4 {[%clk 0:00:33.2]} 33. Qh5 {[%clk
0:02:11.6]} 33... Qd5 {[%clk 0:00:07.9]} 34. Re4 {[%clk 0:01:45.3]} 34... Rf8
{[%clk 0:00:08.7]} 35. h4 {[%clk 0:01:31]} 35... h6 {[%clk 0:00:08]} 36. Kg2
{[%clk 0:01:27.9]} 36... b5 {[%clk 0:00:04.9]} 37. hxg5 {[%clk 0:01:23.3]} 37...
hxg5 {[%clk 0:00:06.2]} 38. Ne8+ {[%clk 0:01:21]} 38... Rxe8 {[%clk 0:00:03.4]}
39. Qxe8 {[%clk 0:01:20.4]} 39... Bf8 {[%clk 0:00:03.8]} 40. Qh5 {[%clk
0:01:14.5]} 40... Be7 {[%clk 0:00:05.1]} 41. Qe8 {[%clk 0:01:01.1]} 41... Bf8
{[%clk 0:00:05.6]} 42. Qb8 {[%clk 0:00:53.3]} 42... Be7 {[%clk 0:00:05.7]} 43.
Qc7 {[%clk 0:00:51.3]} 43... Kf7 {[%clk 0:00:06.9]} 44. Qc8 {[%clk 0:00:39.7]}
44... Bf8 {[%clk 0:00:05.1]} 45. Qc7+ {[%clk 0:00:38.8]} 45... Be7 {[%clk
0:00:06.4]} 46. Qa5 {[%clk 0:00:40]} 46... Qd3 {[%clk 0:00:03.5]} 47. Qa1 {[%clk
0:00:36.2]} 47... Qd5 {[%clk 0:00:04.1]} 48. Qd4 {[%clk 0:00:36.5]} 48... Bf8
{[%clk 0:00:03.4]} 49. f4 {[%clk 0:00:35.6]} 49... g4 {[%clk 0:00:03.6]} 50. Kg3
{[%clk 0:00:32.6]} 50... Kg6 {[%clk 0:00:04.4]} 51. Qxd5 {[%clk 0:00:32.2]}
51... exd5 {[%clk 0:00:06.3]} 52. Re1 {[%clk 0:00:31.1]} 52... Kf5 {[%clk
0:00:07.5]} 53. e6 {[%clk 0:00:31.1]} 53... Be7 {[%clk 0:00:07.2]} 54. Re5+
{[%clk 0:00:31.4]} 54... Kf6 {[%clk 0:00:07.1]} 55. Kxg4 {[%clk 0:00:32.2]}
55... d4 {[%clk 0:00:08.7]} 56. Re4 {[%clk 0:00:32.1]} 56... d3 {[%clk
0:00:09.8]} 57. Rd4 {[%clk 0:00:32.7]} 57... Kxe6 {[%clk 0:00:10.6]} 58. Rxd3
{[%clk 0:00:33.4]} 58... Bf6 {[%clk 0:00:12]} 59. Kf3 {[%clk 0:00:32.6]} 59...
Ke7 {[%clk 0:00:10]} 60. Ke4 {[%clk 0:00:32.5]} 60... Bg7 {[%clk 0:00:10.1]} 61.
Rd6 {[%clk 0:00:32.3]} 61... Bc3 {[%clk 0:00:10.1]} 62. Rxc6 {[%clk 0:00:34.2]}
62... Bxb4 {[%clk 0:00:11.5]} 63. Rb6 {[%clk 0:00:34.4]} 63... Bxc5 {[%clk
0:00:12.5]} 64. Rxb5 {[%clk 0:00:36.3]} 64... Bxf2 {[%clk 0:00:13.8]} 65. f5
{[%clk 0:00:37.4]} 65... Bh4 {[%clk 0:00:13.2]} 66. Rb3 {[%clk 0:00:36.4]} 66...
Kf7 {[%clk 0:00:13.4]} 67. Ke5 {[%clk 0:00:36]} 67... Bf6+ {[%clk 0:00:14]} 68.
Kf4 {[%clk 0:00:36.9]} 68... Bd4 {[%clk 0:00:07.6]} 69. Rb7+ {[%clk 0:00:38.8]}
69... Kf6 {[%clk 0:00:07.8]} 70. Ke4 {[%clk 0:00:37.9]} 70... Bc3 {[%clk
0:00:08.4]} 71. Rb6+ {[%clk 0:00:37.9]} 71... Kf7 {[%clk 0:00:09.4]} 72. Re6
{[%clk 0:00:37.4]} 72... Bf6 {[%clk 0:00:10]} 73. Kd5 {[%clk 0:00:39]} 73... Bc3
{[%clk 0:00:09.8]} 74. Rd6 {[%clk 0:00:37.7]} 74... Bb2 {[%clk 0:00:04.8]} 75.
Rg6 {[%clk 0:00:38.1]} 75... Bf6 {[%clk 0:00:05.1]} 76. Kd6 {[%clk 0:00:37.7]}
76... Bc3 {[%clk 0:00:05.5]} 77. Kd7 {[%clk 0:00:38.4]} 77... Bf6 {[%clk
0:00:06.1]} 78. Rh6 {[%clk 0:00:37.3]} 78... Be5 {[%clk 0:00:06.1]} 79. Re6
{[%clk 0:00:39.2]} 79... Bf6 {[%clk 0:00:06.8]} 80. Kd6 {[%clk 0:00:38.5]} 80...
Bg5 {[%clk 0:00:07.2]} 81. Kd5 {[%clk 0:00:38.4]} 81... Bf6 {[%clk 0:00:07.9]}
82. Ke4 {[%clk 0:00:40.3]} 82... Bg5 {[%clk 0:00:08.4]} 83. Kf3 {[%clk
0:00:42.2]} 83... Bf6 {[%clk 0:00:09.7]} 84. Kg4 {[%clk 0:00:44.1]} 84... Bd4
{[%clk 0:00:10.4]} 85. Kh5 {[%clk 0:00:46]} 85... Bf6 {[%clk 0:00:11.1]} 86. Kh6
{[%clk 0:00:45.8]} 86... Bg7+ {[%clk 0:00:12.3]} 87. Kh7 {[%clk 0:00:45.8]}
87... Bf6 {[%clk 0:00:13.3]} 88. Kh6 {[%clk 0:00:45.9]} 88... Bg7+ {[%clk
0:00:14.5]} 89. Kg5 {[%clk 0:00:47.8]} 89... Bb2 {[%clk 0:00:13.3]} 90. Re1
{[%clk 0:00:44.7]} 90... Bc3 {[%clk 0:00:13.5]} 91. Rd1 {[%clk 0:00:43]} 91...
Bf6+ {[%clk 0:00:13.9]} 92. Kf4 {[%clk 0:00:42.9]} 92... Bb2 {[%clk 0:00:12.3]}
93. Rd7+ {[%clk 0:00:41.9]} 93... Kf6 {[%clk 0:00:12.7]} 94. Rd6+ {[%clk
0:00:42.4]} 94... Kf7 {[%clk 0:00:12.5]} 95. Rg6 {[%clk 0:00:42.8]} 95... Bc1+
{[%clk 0:00:11.3]} 96. Kg4 {[%clk 0:00:43.1]} 96... Bb2 {[%clk 0:00:12]} 97. Kg5
{[%clk 0:00:43.5]} 97... Bc1+ {[%clk 0:00:12.6]} 98. Kh5 {[%clk 0:00:45.4]}
98... Bb2 {[%clk 0:00:13.7]} 99. Rg4 {[%clk 0:00:44.2]} 99... Bc3 {[%clk
0:00:12.5]} 100. Rg3 {[%clk 0:00:44.4]} 100... Bb2 {[%clk 0:00:12.8]} 101. Rf3
{[%clk 0:00:46.3]} 101... Kf6 {[%clk 0:00:13]} 102. Kg4 {[%clk 0:00:46.6]}
102... Bd4 {[%clk 0:00:12]} 103. Rd3 {[%clk 0:00:46.4]} 103... Bb2 {[%clk
0:00:12.6]} 104. Rd6+ {[%clk 0:00:46]} 104... Kf7 {[%clk 0:00:13.5]} 105. Kf4
{[%clk 0:00:44.3]} 105... Bc1+ {[%clk 0:00:11.2]} 106. Ke4 {[%clk 0:00:44.9]}
106... Bb2 {[%clk 0:00:11.8]} 107. Rc6 {[%clk 0:00:46.8]} 107... Ba1 {[%clk
0:00:07.5]} 108. Kf4 {[%clk 0:00:45.3]} 108... Bd4 {[%clk 0:00:05.4]} 109. Rc4
{[%clk 0:00:40.5]} 109... Bb2 {[%clk 0:00:06.2]} 110. Kg5 {[%clk 0:00:39.1]}
110... Bf6+ {[%clk 0:00:06.8]} 111. Kh6 {[%clk 0:00:39.8]} 111... Bb2 {[%clk
0:00:07.9]} 112. Kg5 {[%clk 0:00:31.5]} 112... Bf6+ {[%clk 0:00:08.2]} 113. Kf4
{[%clk 0:00:31.8]} 113... Bb2 {[%clk 0:00:09.3]} 114. Rc2 {[%clk 0:00:24.7]}
114... Bd4 {[%clk 0:00:08.7]} 115. Ke4 {[%clk 0:00:20.3]} 1/2-1/2